[Event "January 9 Early 2024"]
[Site "https://www.chess.com"]
[Date "2024.01.11"]
[Round "6"]
[White "Kazakouski, Valery"]
[Black "Goltseva, Ekaterina"]
[Result "1-0"]
[Board "183"]
[TimeControl "180+1"]
[WhiteFideId "13507443"]
[BlackFideId "24173770"]
[WhiteElo "2828"]
[BlackElo "2598"]
[WhiteTeam "LTU"]
[BlackTeam "RUS"]
[WhiteClock "0:00:29"]
[BlackClock "0:00:01"]

1. Nf3 {[%clk 0:03:00]}  Nf6 {[%clk 0:02:57]} 2. c4 {[%clk 0:03:00]}  e6 {[%clk 0:02:57]} 3. g3 {[%clk 0:03:00]}  d5 {[%clk 0:02:55]} 4. b3 {[%clk 0:03:00]}  d4 {[%clk 0:02:48]} 5. e3 {[%clk 0:03:00]}  c5 {[%clk 0:02:48]} 6. exd4 {[%clk 0:03:00]}  cxd4 {[%clk 0:02:49]} 7. Bg2 {[%clk 0:03:01]}  Nc6 {[%clk 0:02:48]} 8. O-O {[%clk 0:03:01]}  Bc5 {[%clk 0:02:40]} 9. d3 {[%clk 0:03:00]}  O-O {[%clk 0:02:38]} 10. Bg5 {[%clk 0:03:00]}  h6 {[%clk 0:02:35]} 11. Bxf6 {[%clk 0:03:00]}  Qxf6 {[%clk 0:02:36]} 12. a3 {[%clk 0:02:59]}  a5 {[%clk 0:02:35]} 13. Nbd2 {[%clk 0:02:59]}  Qd8 {[%clk 0:02:33]} 14. Re1 {[%clk 0:02:55]}  Qe7 {[%clk 0:02:07]} 15. Qc1 {[%clk 0:02:50]}  e5 {[%clk 0:02:04]} 16. Ne4 {[%clk 0:02:43]}  Bf5 {[%clk 0:01:51]} 17. Nfd2 {[%clk 0:02:36]}  Kh8 {[%clk 0:01:26]} 18. Qb2 {[%clk 0:02:32]}  Bg6 {[%clk 0:01:13]} 19. Reb1 {[%clk 0:02:24]}  Bb6 {[%clk 0:01:01]} 20. g4 {[%clk 0:02:17]}  f5 {[%clk 0:00:53]} 21. gxf5 {[%clk 0:02:17]}  Rxf5 {[%clk 0:00:48]} 22. b4 {[%clk 0:02:17]}  axb4 {[%clk 0:00:46]} 23. axb4 {[%clk 0:02:18]}  Raf8 {[%clk 0:00:42]} 24. c5 {[%clk 0:02:16]}  Bc7 {[%clk 0:00:38]} 25. b5 {[%clk 0:01:57]}  Bd8 {[%clk 0:00:38]} 26. bxc6 {[%clk 0:01:57]}  bxc6 {[%clk 0:00:36]} 27. Qb7 {[%clk 0:01:56]}  Qh4 {[%clk 0:00:35]} 28. Qxc6 {[%clk 0:01:51]}  Kh7 {[%clk 0:00:28]} 29. Ra6 {[%clk 0:01:43]}  Bh5 {[%clk 0:00:27]} 30. Ng3 {[%clk 0:01:25]}  Rxf2 {[%clk 0:00:24]} 31. Qe4+ {[%clk 0:01:26]}  Qxe4 {[%clk 0:00:20]} 32. Ndxe4 {[%clk 0:01:26]}  Rxg2+ {[%clk 0:00:16]} 33. Kxg2 {[%clk 0:01:25]}  Bf3+ {[%clk 0:00:15]} 34. Kg1 {[%clk 0:01:25]}  h5 {[%clk 0:00:13]} 35. Ra8 {[%clk 0:00:51]}  h4 {[%clk 0:00:11]} 36. Rxd8 {[%clk 0:00:50]}  Rxd8 {[%clk 0:00:09]} 37. Ng5+ {[%clk 0:00:50]}  Kg6 {[%clk 0:00:08]} 38. Nxf3 {[%clk 0:00:50]}  hxg3 {[%clk 0:00:08]} 39. Nxe5+ {[%clk 0:00:49]}  Kf5 {[%clk 0:00:08]} 40. Nc4 {[%clk 0:00:45]}  gxh2+ {[%clk 0:00:08]} 41. Kxh2 {[%clk 0:00:45]}  Ke6 {[%clk 0:00:06]} 42. c6 {[%clk 0:00:41]}  Rc8 {[%clk 0:00:05]} 43. Re1+ {[%clk 0:00:41]}  Kf6 {[%clk 0:00:03]} 44. Ne5 {[%clk 0:00:38]}  g5 {[%clk 0:00:02]} 45. Kg3 {[%clk 0:00:36]}  Kf5 {[%clk 0:00:03]} 46. Re4 {[%clk 0:00:36]}  Ke6 {[%clk 0:00:02]} 47. Nf3+ {[%clk 0:00:32]}  Kf5 {[%clk 0:00:02]} 48. Nxd4+ {[%clk 0:00:32]}  Kf6 {[%clk 0:00:02]} 49. Re6+ {[%clk 0:00:31]}  Kf7 {[%clk 0:00:02]} 50. Rd6 {[%clk 0:00:32]}  Ke7 {[%clk 0:00:02]} 51. Nf5+ {[%clk 0:00:31]}  Kf7 {[%clk 0:00:02]} 52. d4 {[%clk 0:00:30]}  Rc7 {[%clk 0:00:01]} 53. Rd7+ {[%clk 0:00:29]} 1-0

[Event "January 9 Early 2024"]
[Site "https://www.chess.com"]
[Date "2024.01.11"]
[Round "6"]
[White "Eilenberg, Jonas"]
[Black "Parfenov, Viktor N."]
[Result "1-0"]
[Board "184"]
[TimeControl "180+1"]
[WhiteFideId "16204271"]
[BlackFideId "4165969"]
[WhiteElo "2398"]
[BlackElo "2507"]
[WhiteTeam "GER"]
[BlackTeam "RUS"]
[WhiteClock "0:00:08"]
[BlackClock "0:00:03"]

1. d4 {[%clk 0:03:00]}  d5 {[%clk 0:02:58]} 2. Nc3 {[%clk 0:03:01]}  Nf6 {[%clk 0:02:57]} 3. Bf4 {[%clk 0:03:01]}  c5 {[%clk 0:02:56]} 4. e3 {[%clk 0:03:01]}  cxd4 {[%clk 0:02:54]} 5. exd4 {[%clk 0:03:02]}  Bg4 {[%clk 0:02:53]} 6. f3 {[%clk 0:03:02]}  Bd7 {[%clk 0:02:53]} 7. Nb5 {[%clk 0:03:02]}  Bxb5 {[%clk 0:02:52]} 8. Bxb5+ {[%clk 0:03:03]}  Nc6 {[%clk 0:02:53]} 9. c3 {[%clk 0:03:03]}  e6 {[%clk 0:02:49]} 10. Ne2 {[%clk 0:03:03]}  Bd6 {[%clk 0:02:49]} 11. Qd2 {[%clk 0:03:03]}  O-O {[%clk 0:02:48]} 12. Bg5 {[%clk 0:03:02]}  e5 {[%clk 0:02:27]} 13. dxe5 {[%clk 0:02:40]}  Bxe5 {[%clk 0:02:23]} 14. O-O-O {[%clk 0:02:16]}  Qb6 {[%clk 0:02:17]} 15. Bd3 {[%clk 0:02:08]}  d4 {[%clk 0:01:57]} 16. f4 {[%clk 0:01:38]}  dxc3 {[%clk 0:01:54]} 17. Nxc3 {[%clk 0:01:39]}  Bxc3 {[%clk 0:01:50]} 18. Qxc3 {[%clk 0:01:39]}  Nb4 {[%clk 0:01:36]} 19. Kb1 {[%clk 0:01:35]}  Rac8 {[%clk 0:01:28]} 20. Bc4 {[%clk 0:01:21]}  Ne4 {[%clk 0:01:16]} 21. Bxf7+ {[%clk 0:01:02]}  Kh8 {[%clk 0:01:12]} 22. Qh3 {[%clk 0:01:02]}  Rc2 {[%clk 0:01:01]} 23. Bb3 {[%clk 0:00:51]}  Nd2+ {[%clk 0:00:49]} 24. Ka1 {[%clk 0:00:43]}  Nxb3+ {[%clk 0:00:30]} 25. Qxb3 {[%clk 0:00:44]}  Rxg2 {[%clk 0:00:28]} 26. a3 {[%clk 0:00:37]}  Nc2+ {[%clk 0:00:28]} 27. Ka2 {[%clk 0:00:37]}  Qxb3+ {[%clk 0:00:28]} 28. Kxb3 {[%clk 0:00:38]}  Ne3 {[%clk 0:00:28]} 29. Rd7 {[%clk 0:00:37]}  h6 {[%clk 0:00:27]} 30. Bh4 {[%clk 0:00:26]}  Rxf4 {[%clk 0:00:27]} 31. Bg3 {[%clk 0:00:26]}  Rf3 {[%clk 0:00:27]} 32. Rxb7 {[%clk 0:00:25]}  Nd1+ {[%clk 0:00:19]} 33. Ka2 {[%clk 0:00:22]}  Nc3+ {[%clk 0:00:19]} 34. Ka1 {[%clk 0:00:19]}  Na4 {[%clk 0:00:17]} 35. Rc1 {[%clk 0:00:17]}  a5 {[%clk 0:00:10]} 36. Be5 {[%clk 0:00:16]}  Re3 {[%clk 0:00:08]} 37. Bd4 {[%clk 0:00:13]}  Rd3 {[%clk 0:00:07]} 38. Rc4 {[%clk 0:00:11]}  Rd1+ {[%clk 0:00:05]} 39. Ka2 {[%clk 0:00:11]}  Rdd2 {[%clk 0:00:04]} 40. Rxa4 {[%clk 0:00:11]}  Rxh2 {[%clk 0:00:03]} 41. Bxg7+ {[%clk 0:00:08]}  Kh7 {[%clk 0:00:03]} 42. Be5+ {[%clk 0:00:08]} 1-0

[Event "January 9 Early 2024"]
[Site "https://www.chess.com"]
[Date "2024.01.11"]
[Round "6"]
[White "Wojtaszek, Radoslaw"]
[Black "Svane, Frederik"]
[Result "1-0"]
[Board "185"]
[TimeControl "180+1"]
[WhiteFideId "1118358"]
[BlackFideId "12923044"]
[WhiteElo "2949"]
[BlackElo "2995"]
[WhiteTeam "POL"]
[BlackTeam "GER"]
[WhiteClock "0:00:12"]
[BlackClock "0:00:02"]

1. e4 {[%clk 0:02:45]}  e5 {[%clk 0:02:59]} 2. Nf3 {[%clk 0:02:45]}  Nc6 {[%clk 0:02:57]} 3. Bb5 {[%clk 0:02:45]}  a6 {[%clk 0:02:57]} 4. Ba4 {[%clk 0:02:45]}  Nf6 {[%clk 0:02:57]} 5. d3 {[%clk 0:02:45]}  Bc5 {[%clk 0:02:56]} 6. Bg5 {[%clk 0:02:43]}  b5 {[%clk 0:02:54]} 7. Bb3 {[%clk 0:02:42]}  d6 {[%clk 0:02:54]} 8. a4 {[%clk 0:02:40]}  Rb8 {[%clk 0:02:54]} 9. c3 {[%clk 0:02:41]}  h6 {[%clk 0:02:53]} 10. Bh4 {[%clk 0:02:41]}  O-O {[%clk 0:02:53]} 11. Nbd2 {[%clk 0:02:40]}  Bb6 {[%clk 0:02:53]} 12. O-O {[%clk 0:02:37]}  Bg4 {[%clk 0:02:52]} 13. h3 {[%clk 0:02:34]}  Bh5 {[%clk 0:02:52]} 14. Re1 {[%clk 0:02:30]}  g5 {[%clk 0:02:47]} 15. Bg3 {[%clk 0:02:30]}  Qd7 {[%clk 0:02:47]} 16. Nf1 {[%clk 0:02:28]}  Ne7 {[%clk 0:02:46]} 17. d4 {[%clk 0:02:23]}  Ng6 {[%clk 0:02:23]} 18. Ne3 {[%clk 0:01:55]}  Kh8 {[%clk 0:01:30]} 19. Bc2 {[%clk 0:01:47]}  exd4 {[%clk 0:01:14]} 20. cxd4 {[%clk 0:01:47]}  Bxf3 {[%clk 0:00:51]} 21. Qxf3 {[%clk 0:01:46]}  Bxd4 {[%clk 0:00:36]} 22. Red1 {[%clk 0:01:40]}  Bxb2 {[%clk 0:00:23]} 23. Rab1 {[%clk 0:01:35]}  Bc3 {[%clk 0:00:23]} 24. Ng4 {[%clk 0:01:15]}  Nxe4 {[%clk 0:00:14]} 25. Bxe4 {[%clk 0:01:11]}  Bg7 {[%clk 0:00:14]} 26. Bc6 {[%clk 0:00:43]}  Qe6 {[%clk 0:00:08]} 27. Re1 {[%clk 0:00:42]}  Qc4 {[%clk 0:00:08]} 28. axb5 {[%clk 0:00:39]}  axb5 {[%clk 0:00:08]} 29. Ne3 {[%clk 0:00:38]}  Qc5 {[%clk 0:00:08]} 30. Rbc1 {[%clk 0:00:35]}  Ne5 {[%clk 0:00:08]} 31. Bxe5 {[%clk 0:00:24]}  Qxe5 {[%clk 0:00:08]} 32. Nd5 {[%clk 0:00:24]}  Qb2 {[%clk 0:00:05]} 33. Nxc7 {[%clk 0:00:23]}  b4 {[%clk 0:00:06]} 34. Be4 {[%clk 0:00:23]}  Qe5 {[%clk 0:00:04]} 35. Bb1 {[%clk 0:00:21]}  Qf6 {[%clk 0:00:04]} 36. Qd3 {[%clk 0:00:18]}  Qg6 {[%clk 0:00:03]} 37. Qb3 {[%clk 0:00:17]}  Qf6 {[%clk 0:00:03]} 38. Nd5 {[%clk 0:00:17]}  Qd4 {[%clk 0:00:02]} 39. Rcd1 {[%clk 0:00:16]}  Qc5 {[%clk 0:00:02]} 40. Qd3 {[%clk 0:00:14]}  f5 {[%clk 0:00:02]} 41. Ne7 {[%clk 0:00:14]}  Rf6 {[%clk 0:00:02]} 42. Nxf5 {[%clk 0:00:13]}  Rbf8 {[%clk 0:00:02]} 43. g4 {[%clk 0:00:13]}  b3 {[%clk 0:00:02]} 44. Qxb3 {[%clk 0:00:13]}  d5 {[%clk 0:00:02]} 45. Qxd5 {[%clk 0:00:13]}  Qc7 {[%clk 0:00:02]} 46. Qd7 {[%clk 0:00:12]} 1-0

[Event "January 9 Early 2024"]
[Site "https://www.chess.com"]
[Date "2024.01.11"]
[Round "6"]
[White "Sieciechowicz, Marcin"]
[Black "Aadit Bhatia"]
[Result "0-1"]
[Board "186"]
[TimeControl "180+1"]
[WhiteFideId "1130170"]
[BlackFideId "25088955"]
[WhiteElo "2671"]
[BlackElo "2459"]
[WhiteTeam "POL"]
[BlackTeam "IND"]
[WhiteClock "0:00:10"]
[BlackClock "0:00:11"]

1. d4 {[%clk 0:03:00]}  Nf6 {[%clk 0:02:55]} 2. Nc3 {[%clk 0:03:00]}  d5 {[%clk 0:02:54]} 3. Bf4 {[%clk 0:03:00]}  c5 {[%clk 0:02:52]} 4. e4 {[%clk 0:03:00]}  dxe4 {[%clk 0:02:46]} 5. dxc5 {[%clk 0:02:57]}  e6 {[%clk 0:02:29]} 6. Qxd8+ {[%clk 0:02:50]}  Kxd8 {[%clk 0:02:29]} 7. O-O-O+ {[%clk 0:02:51]}  Ke8 {[%clk 0:02:20]} 8. Nb5 {[%clk 0:02:05]}  Na6 {[%clk 0:02:19]} 9. Nd6+ {[%clk 0:02:03]}  Bxd6 {[%clk 0:02:19]} 10. Bxd6 {[%clk 0:02:04]}  Nb4 {[%clk 0:02:09]} 11. a3 {[%clk 0:01:37]}  Nc6 {[%clk 0:02:08]} 12. f3 {[%clk 0:01:33]}  Bd7 {[%clk 0:02:06]} 13. b4 {[%clk 0:01:26]}  a6 {[%clk 0:02:04]} 14. Nh3 {[%clk 0:01:16]}  exf3 {[%clk 0:01:58]} 15. gxf3 {[%clk 0:01:15]}  Ne7 {[%clk 0:01:53]} 16. Nf2 {[%clk 0:01:04]}  Bc6 {[%clk 0:01:52]} 17. Be2 {[%clk 0:01:02]}  Nf5 {[%clk 0:01:43]} 18. Rhg1 {[%clk 0:00:54]}  Nd5 {[%clk 0:01:33]} 19. Ne4 {[%clk 0:00:43]}  f6 {[%clk 0:01:07]} 20. Rd2 {[%clk 0:00:38]}  Kf7 {[%clk 0:01:06]} 21. c4 {[%clk 0:00:36]}  Nde7 {[%clk 0:00:53]} 22. Kb2 {[%clk 0:00:34]}  Rhd8 {[%clk 0:00:49]} 23. Ng3 {[%clk 0:00:20]}  Nh4 {[%clk 0:00:35]} 24. f4 {[%clk 0:00:19]}  Nf3 {[%clk 0:00:25]} 25. Bxf3 {[%clk 0:00:18]}  Bxf3 {[%clk 0:00:25]} 26. Rf1 {[%clk 0:00:18]}  Bc6 {[%clk 0:00:24]} 27. Rfd1 {[%clk 0:00:17]}  Ng6 {[%clk 0:00:23]} 28. f5 {[%clk 0:00:16]}  Nh4 {[%clk 0:00:16]} 29. fxe6+ {[%clk 0:00:15]}  Kxe6 {[%clk 0:00:17]} 30. Re1+ {[%clk 0:00:15]}  Kf7 {[%clk 0:00:17]} 31. Re7+ {[%clk 0:00:15]}  Kg6 {[%clk 0:00:17]} 32. Rd1 {[%clk 0:00:13]}  Rd7 {[%clk 0:00:16]} 33. Rg1 {[%clk 0:00:12]}  Rxe7 {[%clk 0:00:15]} 34. Bxe7 {[%clk 0:00:13]}  Kf7 {[%clk 0:00:15]} 35. Bd6 {[%clk 0:00:12]}  Nf3 {[%clk 0:00:15]} 36. Rd1 {[%clk 0:00:11]}  Re8 {[%clk 0:00:13]} 37. Kb3 {[%clk 0:00:11]}  Re3+ {[%clk 0:00:12]} 38. Kb2 {[%clk 0:00:11]}  Ba4 {[%clk 0:00:12]} 39. Ra1 {[%clk 0:00:09]}  Rb3+ {[%clk 0:00:12]} 40. Kc1 {[%clk 0:00:10]}  Rc3+ {[%clk 0:00:12]} 41. Kb2 {[%clk 0:00:09]}  Rc2+ {[%clk 0:00:12]} 42. Kb1 {[%clk 0:00:10]}  Nd2# {[%clk 0:00:11]} 0-1

[Event "January 9 Early 2024"]
[Site "https://www.chess.com"]
[Date "2024.01.11"]
[Round "6"]
[White "Rustamov, Rustam"]
[Black "De Souza, Cristiano Gomes"]
[Result "1-0"]
[Board "187"]
[TimeControl "180+1"]
[WhiteFideId "13440110"]
[BlackFideId "2151758"]
[WhiteElo "2885"]
[BlackElo "2273"]
[WhiteTeam "AZE"]
[BlackTeam "BRA"]
[WhiteClock "0:00:55"]
[BlackClock "0:00:15"]

1. e4 {[%clk 0:03:00]}  c5 {[%clk 0:02:58]} 2. Nf3 {[%clk 0:03:01]}  d6 {[%clk 0:02:56]} 3. d4 {[%clk 0:03:02]}  cxd4 {[%clk 0:02:56]} 4. Nxd4 {[%clk 0:03:02]}  Nf6 {[%clk 0:02:56]} 5. Nc3 {[%clk 0:03:03]}  a6 {[%clk 0:02:55]} 6. Be2 {[%clk 0:03:04]}  e5 {[%clk 0:02:51]} 7. Nf5 {[%clk 0:03:04]}  Bxf5 {[%clk 0:02:41]} 8. exf5 {[%clk 0:03:05]}  d5 {[%clk 0:02:42]} 9. Bg5 {[%clk 0:03:05]}  d4 {[%clk 0:02:41]} 10. Bxf6 {[%clk 0:03:05]}  Qxf6 {[%clk 0:02:39]} 11. Nd5 {[%clk 0:03:06]}  Qd6 {[%clk 0:02:35]} 12. c4 {[%clk 0:03:06]}  Nc6 {[%clk 0:02:32]} 13. Bd3 {[%clk 0:03:06]}  Ne7 {[%clk 0:02:28]} 14. Qa4+ {[%clk 0:03:02]}  Qc6 {[%clk 0:02:25]} 15. Nc7+ {[%clk 0:02:47]}  Kd7 {[%clk 0:02:24]} 16. Qxc6+ {[%clk 0:02:48]}  Nxc6 {[%clk 0:02:23]} 17. Nxa8 {[%clk 0:02:48]}  Bb4+ {[%clk 0:02:23]} 18. Ke2 {[%clk 0:02:47]}  Rxa8 {[%clk 0:02:23]} 19. a3 {[%clk 0:02:48]}  Be7 {[%clk 0:02:21]} 20. b4 {[%clk 0:02:48]}  Re8 {[%clk 0:02:16]} 21. Be4 {[%clk 0:02:45]}  g6 {[%clk 0:02:14]} 22. g4 {[%clk 0:02:45]}  Bg5 {[%clk 0:02:13]} 23. Rhb1 {[%clk 0:02:44]}  Kc7 {[%clk 0:02:11]} 24. a4 {[%clk 0:02:41]}  gxf5 {[%clk 0:02:03]} 25. gxf5 {[%clk 0:02:41]}  Bf4 {[%clk 0:02:01]} 26. a5 {[%clk 0:02:39]}  d3+ {[%clk 0:01:51]} 27. Kxd3 {[%clk 0:02:37]}  Rd8+ {[%clk 0:01:51]} 28. Bd5 {[%clk 0:02:38]}  Ne7 {[%clk 0:01:49]} 29. Ke4 {[%clk 0:02:38]}  Ng8 {[%clk 0:01:46]} 30. b5 {[%clk 0:02:31]}  Nf6+ {[%clk 0:01:46]} 31. Kf3 {[%clk 0:02:31]}  Nxd5 {[%clk 0:01:43]} 32. cxd5 {[%clk 0:02:32]}  Rxd5 {[%clk 0:01:43]} 33. bxa6 {[%clk 0:02:32]}  bxa6 {[%clk 0:01:43]} 34. Ra3 {[%clk 0:02:31]}  Bxh2 {[%clk 0:01:40]} 35. Rc3+ {[%clk 0:02:29]}  Kd8 {[%clk 0:01:39]} 36. Rb8+ {[%clk 0:02:28]}  Ke7 {[%clk 0:01:39]} 37. Rc6 {[%clk 0:02:04]}  e4+ {[%clk 0:01:36]} 38. Kxe4 {[%clk 0:02:05]}  Re5+ {[%clk 0:01:33]} 39. Kd4 {[%clk 0:01:58]}  Rxf5 {[%clk 0:01:33]} 40. Rb7+ {[%clk 0:01:56]}  Kf8 {[%clk 0:01:33]} 41. Rxa6 {[%clk 0:01:57]}  Rxf2 {[%clk 0:01:32]} 42. Ra8+ {[%clk 0:01:57]}  Kg7 {[%clk 0:01:32]} 43. a6 {[%clk 0:01:58]}  Rd2+ {[%clk 0:01:29]} 44. Kc3 {[%clk 0:01:56]}  Ra2 {[%clk 0:01:27]} 45. Raa7 {[%clk 0:01:42]}  Kg6 {[%clk 0:01:20]} 46. Kb3 {[%clk 0:01:37]}  Ra1 {[%clk 0:01:15]} 47. Ra8 {[%clk 0:01:35]}  Bg1 {[%clk 0:01:12]} 48. Rg8+ {[%clk 0:01:26]}  Kf6 {[%clk 0:01:09]} 49. Ra8 {[%clk 0:01:17]}  h5 {[%clk 0:01:07]} 50. Rb4 {[%clk 0:01:04]}  Be3 {[%clk 0:00:49]} 51. Ra4 {[%clk 0:00:59]}  Rb1+ {[%clk 0:00:48]} 52. Kc2 {[%clk 0:00:57]}  Rc1+ {[%clk 0:00:47]} 53. Kd3 {[%clk 0:00:58]}  Bg1 {[%clk 0:00:43]} 54. Rb8 {[%clk 0:00:52]}  Rc7 {[%clk 0:00:40]} 55. Rb7 {[%clk 0:00:52]}  Rxb7 {[%clk 0:00:36]} 56. axb7 {[%clk 0:00:53]}  Bh2 {[%clk 0:00:35]} 57. Ra8 {[%clk 0:00:53]}  Kg5 {[%clk 0:00:32]} 58. Ke2 {[%clk 0:00:53]}  h4 {[%clk 0:00:32]} 59. b8=Q {[%clk 0:00:53]}  Bxb8 {[%clk 0:00:31]} 60. Rxb8 {[%clk 0:00:54]}  f5 {[%clk 0:00:31]} 61. Kf2 {[%clk 0:00:54]}  Kg4 {[%clk 0:00:31]} 62. Kg2 {[%clk 0:00:54]}  h3+ {[%clk 0:00:28]} 63. Kg1 {[%clk 0:00:55]}  f4 {[%clk 0:00:29]} 64. Rb3 {[%clk 0:00:54]}  f3 {[%clk 0:00:19]} 65. Kf2 {[%clk 0:00:54]}  h2 {[%clk 0:00:19]} 66. Rb1 {[%clk 0:00:55]}  Kh4 {[%clk 0:00:15]} 67. Rh1 {[%clk 0:00:55]}  Kh3 {[%clk 0:00:15]} 68. Kxf3 {[%clk 0:00:55]}  Kh4 {[%clk 0:00:15]} 69. Kg2 {[%clk 0:00:55]} 1-0

[Event "January 9 Early 2024"]
[Site "https://www.chess.com"]
[Date "2024.01.11"]
[Round "6"]
[White "Aukhatov, Roman"]
[Black "Wu, Derek"]
[Result "0-1"]
[Board "188"]
[TimeControl "180+1"]
[WhiteFideId "44150768"]
[BlackFideId "30914558"]
[WhiteElo "2425"]
[BlackElo "2663"]
[WhiteTeam "RUS"]
[BlackTeam "USA"]
[WhiteClock "0:00:03"]
[BlackClock "0:00:31"]

1. Nf3 {[%clk 0:03:00]}  d5 {[%clk 0:02:58]} 2. d4 {[%clk 0:03:00]}  Bf5 {[%clk 0:02:57]} 3. c4 {[%clk 0:03:01]}  e6 {[%clk 0:02:58]} 4. Qb3 {[%clk 0:02:58]}  Nc6 {[%clk 0:02:57]} 5. cxd5 {[%clk 0:02:47]}  Nb4 {[%clk 0:02:53]} 6. Na3 {[%clk 0:02:37]}  exd5 {[%clk 0:02:51]} 7. Bg5 {[%clk 0:02:35]}  f6 {[%clk 0:02:41]} 8. Bd2 {[%clk 0:02:34]}  a5 {[%clk 0:02:39]} 9. e3 {[%clk 0:02:20]}  c6 {[%clk 0:02:38]} 10. Be2 {[%clk 0:02:18]}  Bd6 {[%clk 0:02:33]} 11. O-O {[%clk 0:02:18]}  Ne7 {[%clk 0:02:31]} 12. Nh4 {[%clk 0:02:14]}  Be6 {[%clk 0:02:30]} 13. Nc2 {[%clk 0:02:13]}  a4 {[%clk 0:02:28]} 14. Qc3 {[%clk 0:02:11]}  Nxc2 {[%clk 0:02:26]} 15. Qxc2 {[%clk 0:02:12]}  O-O {[%clk 0:02:27]} 16. Bd3 {[%clk 0:02:07]}  f5 {[%clk 0:02:25]} 17. b4 {[%clk 0:02:04]}  axb3 {[%clk 0:02:21]} 18. axb3 {[%clk 0:02:05]}  Qc7 {[%clk 0:02:19]} 19. Nf3 {[%clk 0:02:03]}  Rxa1 {[%clk 0:02:03]} 20. Rxa1 {[%clk 0:02:02]}  Bf7 {[%clk 0:02:04]} 21. h3 {[%clk 0:01:48]}  Bh5 {[%clk 0:02:03]} 22. Be2 {[%clk 0:01:17]}  f4 {[%clk 0:02:01]} 23. exf4 {[%clk 0:01:06]}  Bxf4 {[%clk 0:02:02]} 24. Bb4 {[%clk 0:01:05]}  Bd6 {[%clk 0:01:59]} 25. Bxd6 {[%clk 0:01:04]}  Qxd6 {[%clk 0:02:00]} 26. Ne5 {[%clk 0:01:04]}  Bxe2 {[%clk 0:01:53]} 27. Qxe2 {[%clk 0:01:05]}  Nf5 {[%clk 0:01:53]} 28. Qd2 {[%clk 0:00:56]}  c5 {[%clk 0:01:50]} 29. Nf3 {[%clk 0:00:56]}  c4 {[%clk 0:01:35]} 30. Ra5 {[%clk 0:00:34]}  b6 {[%clk 0:01:19]} 31. Rb5 {[%clk 0:00:33]}  Qc6 {[%clk 0:01:19]} 32. bxc4 {[%clk 0:00:30]}  dxc4 {[%clk 0:01:14]} 33. Re5 {[%clk 0:00:30]}  b5 {[%clk 0:01:02]} 34. Qc2 {[%clk 0:00:18]}  g6 {[%clk 0:00:54]} 35. Rc5 {[%clk 0:00:17]}  Nxd4 {[%clk 0:00:47]} 36. Rxc6 {[%clk 0:00:06]}  Nxc2 {[%clk 0:00:47]} 37. Rc5 {[%clk 0:00:07]}  Rb8 {[%clk 0:00:46]} 38. Ne5 {[%clk 0:00:06]}  Na3 {[%clk 0:00:41]} 39. Nd7 {[%clk 0:00:05]}  Rb7 {[%clk 0:00:41]} 40. Nf6+ {[%clk 0:00:04]}  Kg7 {[%clk 0:00:40]} 41. Ne4 {[%clk 0:00:05]}  b4 {[%clk 0:00:38]} 42. Nd6 {[%clk 0:00:05]}  b3 {[%clk 0:00:31]} 43. Nxb7 {[%clk 0:00:02]}  b2 {[%clk 0:00:32]} 44. Rc7+ {[%clk 0:00:02]}  Kh6 {[%clk 0:00:32]} 45. Nd6 {[%clk 0:00:02]}  b1=Q+ {[%clk 0:00:32]} 46. Kh2 {[%clk 0:00:03]}  Qb8 {[%clk 0:00:31]} 0-1

[Event "January 9 Early 2024"]
[Site "https://www.chess.com"]
[Date "2024.01.11"]
[Round "6"]
[White "Sarana, Alexey"]
[Black "Alekseenko, Kirill"]
[Result "1-0"]
[Board "190"]
[TimeControl "180+1"]
[WhiteFideId "24133795"]
[BlackFideId "4135539"]
[WhiteElo "3072"]
[BlackElo "2924"]
[WhiteTeam "SRB"]
[BlackTeam "AUT"]
[WhiteClock "0:00:17"]
[BlackClock "0:00:01"]

1. d4 {[%clk 0:03:00]}  Nf6 {[%clk 0:03:00]} 2. c4 {[%clk 0:03:01]}  e6 {[%clk 0:03:01]} 3. Nc3 {[%clk 0:03:02]}  Bb4 {[%clk 0:03:01]} 4. e3 {[%clk 0:03:02]}  O-O {[%clk 0:02:59]} 5. Bd3 {[%clk 0:03:02]}  d6 {[%clk 0:02:55]} 6. Ne2 {[%clk 0:03:01]}  e5 {[%clk 0:02:53]} 7. O-O {[%clk 0:03:01]}  c6 {[%clk 0:02:52]} 8. a3 {[%clk 0:02:57]}  Ba5 {[%clk 0:02:52]} 9. b4 {[%clk 0:02:58]}  Bc7 {[%clk 0:02:53]} 10. Bb2 {[%clk 0:02:58]}  Re8 {[%clk 0:02:49]} 11. d5 {[%clk 0:02:55]}  a5 {[%clk 0:02:43]} 12. Ng3 {[%clk 0:02:51]}  Na6 {[%clk 0:02:38]} 13. Qb3 {[%clk 0:02:50]}  Bd7 {[%clk 0:02:10]} 14. Rfd1 {[%clk 0:02:49]}  g6 {[%clk 0:01:53]} 15. Rac1 {[%clk 0:02:47]}  Qe7 {[%clk 0:01:50]} 16. Bf1 {[%clk 0:02:46]}  axb4 {[%clk 0:01:47]} 17. axb4 {[%clk 0:02:46]}  c5 {[%clk 0:01:47]} 18. b5 {[%clk 0:02:40]}  Nb4 {[%clk 0:01:45]} 19. Re1 {[%clk 0:02:30]}  h5 {[%clk 0:01:45]} 20. Rcd1 {[%clk 0:02:14]}  h4 {[%clk 0:01:44]} 21. Nge2 {[%clk 0:02:14]}  Bf5 {[%clk 0:01:42]} 22. e4 {[%clk 0:01:41]}  Nxe4 {[%clk 0:01:39]} 23. Nxe4 {[%clk 0:01:41]}  Bxe4 {[%clk 0:01:40]} 24. Rd2 {[%clk 0:01:42]}  Bf5 {[%clk 0:01:31]} 25. Red1 {[%clk 0:01:27]}  Qf8 {[%clk 0:01:30]} 26. f4 {[%clk 0:01:24]}  f6 {[%clk 0:01:23]} 27. Rc1 {[%clk 0:01:06]}  Qh6 {[%clk 0:01:23]} 28. Qf3 {[%clk 0:01:03]}  Nd3 {[%clk 0:01:14]} 29. Rcd1 {[%clk 0:00:47]}  Nxb2 {[%clk 0:01:14]} 30. Rxb2 {[%clk 0:00:47]}  Ra4 {[%clk 0:01:08]} 31. g4 {[%clk 0:00:36]}  hxg3 {[%clk 0:01:06]} 32. Nxg3 {[%clk 0:00:37]}  e4 {[%clk 0:00:41]} 33. Nxf5 {[%clk 0:00:29]}  gxf5 {[%clk 0:00:42]} 34. Rg2+ {[%clk 0:00:30]}  Kf7 {[%clk 0:00:41]} 35. Qg3 {[%clk 0:00:30]}  Ba5 {[%clk 0:00:31]} 36. Qb3 {[%clk 0:00:20]}  Rb4 {[%clk 0:00:27]} 37. Qa3 {[%clk 0:00:21]}  Bb6 {[%clk 0:00:23]} 38. Be2 {[%clk 0:00:20]}  Rh8 {[%clk 0:00:21]} 39. Rf1 {[%clk 0:00:19]}  Ke7 {[%clk 0:00:09]} 40. Kh1 {[%clk 0:00:19]}  Kd8 {[%clk 0:00:09]} 41. Rfg1 {[%clk 0:00:17]}  Kc7 {[%clk 0:00:09]} 42. Rg7+ {[%clk 0:00:16]}  Kb8 {[%clk 0:00:09]} 43. Rg8+ {[%clk 0:00:17]}  Rxg8 {[%clk 0:00:09]} 44. Rxg8+ {[%clk 0:00:17]}  Kc7 {[%clk 0:00:10]} 45. Qa8 {[%clk 0:00:16]}  Rb1+ {[%clk 0:00:06]} 46. Kg2 {[%clk 0:00:17]}  Qh4 {[%clk 0:00:01]} 47. Qd8# {[%clk 0:00:17]} 1-0